bitfinex/quotes_SOLUSD_20260220
["timestamp","ask_amount","ask_price","bid_price","bid_amount"]
[1771596450056,12.1107441,82.5,82.481,12.12400431]
[1771596451377,12.1107441,82.5,82.481,0.5]
[1771596451579,12.1107441,82.51,82.481,0.5]
[1771596452781,12.1107441,82.52,82.481,0.5]
[1771596455866,12.1107441,82.52,82.487,0.5]
[1771596456070,0.14216157,82.539,82.487,0.5]
[1771596456591,12.1107441,82.54,82.489,0.5]
[1771596456970,24.10366631,82.54,82.489,0.5]
[1771596457692,12.1107441,82.54,82.489,0.5]
[1771596458196,12.1107441,82.53,82.489,0.5]
[1771596458382,12.1107441,82.51,82.465,0.5]
[1771596459991,12.1107441,82.5,82.465,0.5]
[1771596460781,12.1107441,82.51,82.465,0.5]
[1771596463094,12.1107441,82.51,82.43,3.89383402]
[1771596463095,183.5418289,84.012,82.478,0.28432314]
[1771596463303,12.1107441,82.53,82.479,0.5]
[1771596463978,12.1107441,82.54,82.487,0.5]
[1771596464182,12.1107441,82.54,82.489,0.5]
[1771596465395,12.1107441,82.53,82.489,0.5]
[1771596465598,12.1107441,82.51,82.486,12.12322337]
[1771596465906,12.1107441,82.51,82.487,0.5]
[1771596466281,12.11842121,82.519,82.487,0.5]
[1771596467793,12.1107441,82.52,82.489,0.5]
[1771596470399,12.11842121,82.519,82.49,12.12268153]
[1771596470612,12.1107441,82.51,82.483,12.12371034]
[1771596470996,12.1107441,82.51,82.484,0.5]
[1771596472400,12.1107441,82.51,82.485,12.12341637]
[1771596472803,12.1107441,82.51,82.485,12.62341637]
[1771596473218,12.1107441,82.51,82.486,0.5]
[1771596473522,12.11988995,82.509,82.486,0.5]
[1771596474914,12.11988995,82.509,82.479,0.5]
[1771596477319,4.52108853,82.5,82.481,0.5]
[1771596480311,4.52108853,82.49,82.476,12.12460119]
[1771596480511,4.52108853,82.49,82.462,30.81685093]
[1771596480823,4.52108853,82.48,82.463,0.5]
[1771596481197,4.52108853,82.49,82.463,0.5]
[1771596481600,3.69383402,82.54,82.465,0.5]
[1771596481797,10.3,82.57,82.469,0.5]
[1771596481798,4.52108853,82.52,82.469,0.5]
[1771596482010,16.05311351,82.55,82.465,3.69383402]
[1771596482011,4.52108853,82.54,82.486,0.28432314]
[1771596482216,4.52108853,82.54,82.47,0.14216157]
[1771596482217,4.52108853,82.55,82.499,0.5]
[1771596482418,4.52108853,82.55,82.5,42.42424242]
[1771596482611,12.10683067,82.598,82.515,0.28432314]
[1771596482810,4.52108853,82.58,82.53,0.5]
[1771596483005,4.52108853,82.57,82.53,0.5]
[1771596483520,4.52108853,82.56,82.53,0.5]
[1771596484025,12.09630866,82.56,82.53,0.5]
[1771596484603,24.20877108,82.56,82.531,12.61665919]
[1771596484811,12.09630866,82.56,82.532,0.5]
[1771596485610,12.11254981,82.559,82.532,0.5]
[1771596485812,12.09630866,82.55,82.522,12.11784377]
[1771596486017,12.09630866,82.55,82.523,0.5]
[1771596486222,12.09630866,82.56,82.523,0.5]
[1771596486422,24.20877399,82.56,82.523,0.5]
[1771596486731,24.20877399,82.56,82.525,0.5]
[1771596486732,12.09630866,82.56,82.525,0.5]
[1771596486914,24.20725347,82.57,82.525,0.5]
[1771596487411,12.11094481,82.57,82.525,0.5]
[1771596487611,12.10862581,82.586,82.529,0.5]
[1771596488713,12.10862581,82.586,82.531,0.5]
[1771596489833,0.14216157,82.599,82.539,0.5]
[1771596491937,0.14216157,82.599,82.541,0.5]
[1771596493831,12.24884567,82.599,82.543,0.5]
[1771596494417,12.09630866,82.59,82.543,0.5]
[1771596495035,0.14216157,82.589,82.543,0.5]
[1771596495234,42.51555592,82.599,82.543,0.5]
[1771596495235,12.09630866,82.58,82.543,0.5]
[1771596495439,42.37339435,82.599,82.543,0.5]
[1771596495440,12.09630866,82.57,82.543,0.5]
[1771596496140,24.20730319,82.57,82.543,0.5]
[1771596496718,24.20730319,82.57,82.544,12.11475092]
[1771596496920,24.20730319,82.57,82.544,12.61475092]
[1771596497119,12.09630866,82.57,82.545,0.5]
[1771596499623,12.11108285,82.569,82.545,0.5]
[1771596499820,12.09630866,82.56,82.502,0.5]
[1771596500334,12.11254981,82.559,82.508,0.5]
[1771596500540,12.11254981,82.559,82.51,0.5]
[1771596503341,12.09630866,82.55,82.512,0.5]
[1771596504329,12.09630866,82.56,82.512,0.5]
[1771596504551,12.11201604,82.563,82.512,0.5]
[1771596505049,24.20726955,82.57,82.52,0.5]
[1771596505247,12.09630866,82.57,82.52,0.5]
[1771596505543,12.09630866,82.57,82.514,3.69383402]
[1771596505544,0.14216157,82.577,82.522,0.5]
[1771596506450,0.14216157,82.577,82.524,0.5]
[1771596507042,12.10961624,82.579,82.528,0.5]
[1771596507235,12.10961624,82.579,82.53,0.5]
[1771596507548,12.09630866,82.57,82.53,0.5]
[1771596510350,12.09630866,82.58,82.532,0.5]
[1771596511640,12.1066841,82.599,82.54,0.5]
[1771596512030,0.14216157,82.598,82.54,0.5]
[1771596512245,16.20378269,82.62,82.552,0.5]
[1771596512246,30.26032557,82.617,82.552,0.5]
[1771596512432,12.09630866,82.61,82.552,0.5]
[1771596512628,12.09630866,82.61,82.559,0.28432314]
[1771596512834,12.09630866,82.61,82.56,0.5]
[1771596513057,12.10419289,82.616,82.56,0.5]
[1771596513235,12.19630866,82.62,82.577,0.42648471]
[1771596513236,0.1,82.62,82.577,0.42648471]
[1771596513441,12.19630866,82.62,82.58,0.5]
[1771596513949,12.10375337,82.619,82.58,0.5]
[1771596514158,12.19630866,82.62,82.58,0.5]
[1771596514351,12.19630866,82.62,82.582,0.5]
[1771596514836,24.29994073,82.62,82.582,0.5]
[1771596515733,24.29994073,82.62,82.584,0.5]
[1771596516851,24.29994073,82.62,82.586,0.5]
[1771596517258,0.1,82.62,82.586,0.5]
[1771596517460,12.19630866,82.62,82.586,0.5]
[1771596517756,0.1,82.62,82.586,0.5]
[1771596518854,0.1,82.62,82.587,42.37955125]
[1771596519052,0.1,82.62,82.588,0.5]
[1771596519447,12.19630866,82.62,82.588,0.5]
[1771596519757,12.19630866,82.62,82.587,42.37955125]
[1771596519758,12.09630866,82.61,82.583,12.10896741]
[1771596519961,0.1,82.62,82.579,12.10960557]
[1771596519962,12.09630866,82.6,82.579,12.10960557]
[1771596520851,12.10521855,82.609,82.579,12.10960557]
[1771596524054,4.51080069,82.6,82.58,0.5]
[1771596524258,4.51080069,82.59,82.561,12.1121239]
[1771596524557,0.14216157,82.599,82.562,0.5]
[1771596524769,4.51080069,82.59,82.562,0.5]
[1771596524953,4.51080069,82.59,82.561,12.1121239]
[1771596526646,4.51080069,82.59,82.551,30.28420985]
[1771596526647,12.10814999,82.589,82.557,0.5]
[1771596527264,4.51080069,82.58,82.557,0.5]
[1771596529264,4.51080069,82.58,82.558,12.61269652]
[1771596529473,4.51080069,82.58,82.559,0.5]
[1771596531071,4.51080069,82.59,82.561,0.5]
[1771596533870,16.61886131,82.59,82.563,0.5]
[1771596534172,4.51080069,82.58,82.563,0.5]
[1771596534675,4.51080069,82.58,82.562,12.11210968]
[1771596536667,4.51080069,82.58,82.558,0.5]
[1771596537051,4.51080069,82.6,82.555,12.11312289]
[1771596537052,4.51080069,82.57,82.555,12.11312289]
[1771596537682,4.51080069,82.57,82.549,0.5]
[1771596537983,4.51080069,82.56,82.54,0.5]
[1771596538860,4.51080069,82.56,82.496,3.69383402]
[1771596538861,12.11254981,82.559,82.533,0.5]
[1771596539978,12.11254981,82.559,82.534,12.11621877]
[1771596540272,4.51080069,82.56,82.535,0.5]
[1771596540656,16.6218421,82.57,82.535,0.5]
[1771596540878,4.51080069,82.57,82.535,0.5]
[1771596541289,4.51080069,82.59,82.539,0.5]
[1771596542165,4.51080069,82.59,82.541,0.5]
[1771596543557,4.51080069,82.58,82.541,0.5]
[1771596544580,4.51080069,82.58,82.54,42.40368305]
[1771596544581,4.51080069,82.57,82.543,0.5]
[1771596545390,4.51080069,82.56,82.543,0.5]
[1771596545886,4.51522402,82.56,82.543,0.5]
[1771596546281,4.51522402,82.56,82.544,12.11475092]
[1771596546585,30.2738856,82.58,82.544,12.11475092]
[1771596546586,4.51522402,82.57,82.545,0.5]
[1771596546776,4.51522402,82.58,82.545,0.5]
[1771596547764,4.51522402,82.59,82.545,0.5]
[1771596548774,4.51522402,82.6,82.549,0.5]
[1771596548974,4.51522402,82.61,82.559,0.5]
[1771596549294,4.51522402,82.59,82.559,0.5]
[1771596549674,0.1,82.62,82.559,0.5]
[1771596549675,4.51522402,82.6,82.559,0.5]
[1771596549870,4.51522402,82.61,82.559,0.5]
[1771596550886,4.51522402,82.61,82.561,0.5]
[1771596551192,12.10521855,82.609,82.561,0.5]
[1771596552577,12.08133169,82.61,82.561,0.5]
[1771596552888,0.1,82.62,82.571,0.5]
[1771596553267,0.1,82.62,82.573,0.5]
[1771596553587,0.1,82.62,82.589,0.5]
[1771596554879,12.18133169,82.62,82.591,0.5]
[1771596555082,12.08133169,82.61,82.558,0.5]
[1771596555462,12.08133169,82.61,82.56,0.5]
[1771596557088,12.08133169,82.61,82.561,42.39289737]
[1771596557390,12.08133169,82.61,82.562,0.5]
[1771596557689,24.18649326,82.61,82.562,0.5]
[1771596557984,12.18133169,82.62,82.565,0.78432314]
[1771596558166,0.1,82.62,82.577,0.28432314]
[1771596558362,0.1,82.62,82.58,0.5]
[1771596559285,0.1,82.62,82.564,3.69383402]
[1771596559286,12.08133169,82.66,82.59,0.5]
[1771596559466,12.08133169,82.66,82.6,0.5]
[1771596560285,12.08133169,82.66,82.584,3.69383402]
[1771596560286,0.1,82.683,82.616,0.49661359]
[1771596560498,12.09458728,82.682,82.63,0.49661359]
[1771596561277,0.1,82.683,82.632,0.49661359]
[1771596561490,0.1,82.695,82.635,0.49661359]
[1771596561691,0.1,82.689,82.641,0.49661359]
[1771596563492,0.1,82.689,82.643,0.49661359]
[1771596563678,12.19350699,82.689,82.643,0.49661359]
[1771596564086,12.08133169,82.68,82.643,0.49661359]
[1771596564391,12.08133169,82.67,82.643,0.49661359]
[1771596565575,12.08133169,82.66,82.643,0.49661359]
[1771596566695,12.08133169,82.65,82.612,0.49661359]
[1771596567598,12.08133169,82.65,82.613,42.36621354]
[1771596567798,12.08133169,82.65,82.614,0.49661359]
[1771596568004,12.08133169,82.66,82.614,0.49661359]
[1771596568185,12.08133169,82.65,82.614,0.49661359]
[1771596568602,12.08133169,82.66,82.62,0.49661359]
[1771596570489,12.08133169,82.66,82.621,42.36211131]
[1771596570689,12.08133169,82.66,82.622,0.49661359]
[1771596572989,12.08133169,82.66,82.624,0.49661359]
[1771596573387,12.08133169,82.65,82.624,0.49661359]
[1771596573692,0.1,82.669,82.624,0.49661359]
[1771596573693,12.08133169,82.66,82.624,0.49661359]
[1771596574799,12.08133169,82.65,82.624,0.49661359]
[1771596575609,12.08133169,82.65,82.626,0.49661359]
[1771596577008,12.08133169,82.65,82.628,0.48669608]
[1771596577986,4.50522471,82.65,82.628,0.48669608]
[1771596578508,4.50522471,82.66,82.628,0.48669608]
[1771596579897,0.1,82.659,82.63,0.48669608]
[1771596580098,0.1,82.659,82.629,12.10228854]
[1771596580099,0.3,82.649,82.629,12.10228854]
[1771596580795,4.50522471,82.64,82.591,102.91678269]
[1771596581196,4.50522471,82.64,82.592,0.14216157]
[1771596581509,4.50522471,82.64,82.592,0.42648471]
[1771596581917,12.07010742,82.64,82.594,0.42648471]
[1771596582118,12.07010742,82.64,82.599,0.48669608]
[1771596583014,12.07010742,82.63,82.599,0.48669608]
[1771596583198,12.07010742,82.63,82.593,42.37647257]
[1771596583199,12.07010742,82.61,82.593,12.10756359]
[1771596583589,0.3,82.609,82.585,12.10873645]
[1771596583794,12.07010742,82.6,82.585,12.10873645]
[1771596584019,12.07010742,82.6,82.551,0.48669608]
[1771596584393,12.07010742,82.61,82.551,0.48669608]
[1771596584612,12.07010742,82.61,82.55,102.96789823]
[1771596584613,24.17517944,82.61,82.558,0.28432314]
[1771596584817,12.07010742,82.6,82.559,0.48669608]
[1771596585712,24.17517944,82.61,82.559,0.48669608]
[1771596585914,24.47517944,82.61,82.559,0.48669608]
[1771596586115,24.47517944,82.61,82.561,0.48669608]
[1771596586715,0.3,82.609,82.561,0.48669608]
[1771596586922,12.07010742,82.6,82.561,0.48669608]
[1771596587101,12.07010742,82.6,82.563,0.48669608]
[1771596588508,12.40522782,82.609,82.563,0.48669608]
[1771596588933,12.07010742,82.6,82.563,0.48669608]
[1771596589113,0.3,82.608,82.563,0.48669608]
[1771596589318,0.3,82.608,82.565,0.48669608]
[1771596590405,0.3,82.599,82.564,12.11181628]
[1771596590604,0.3,82.599,82.507,103.5]
[1771596590605,0.3,82.569,82.526,0.5]
[1771596590827,12.07010742,82.55,82.526,0.5]
[1771596591311,12.07010742,82.55,82.531,42.40802714]
[1771596591511,12.07010742,82.55,82.531,12.11665919]
[1771596592223,12.07010742,82.56,82.532,0.5]
[1771596593529,0.28432314,82.595,82.534,0.5]
[1771596593730,12.07010742,82.59,82.54,0.5]
[1771596594027,12.07010742,82.59,82.55,0.5]
[1771596594408,12.07010742,82.6,82.55,0.5]
[1771596594927,12.07010742,82.59,82.55,0.5]
[1771596595517,12.07010742,82.59,82.552,0.5]
[1771596596332,12.07010742,82.58,82.552,0.5]
[1771596597519,12.07010742,82.58,82.553,12.11343016]
[1771596598830,12.07010742,82.57,82.553,12.11343016]
[1771596599721,12.07010742,82.57,82.547,12.11431063]
[1771596600728,12.07010742,82.56,82.547,12.11431063]
[1771596601718,12.07010742,82.56,82.54,12.11533801]
[1771596602319,12.07010742,82.57,82.541,0.5]
[1771596602922,12.07010742,82.57,82.53,0.2]
[1771596602923,12.07010742,82.55,82.53,0.2]
[1771596603227,12.07010742,82.54,82.53,0.2]
[1771596603836,12.1154848,82.539,82.505,12.12047754]
[1771596604021,12.07010742,82.53,82.505,12.12047754]
[1771596604215,12.07010742,82.53,82.505,42.4216714]
[1771596604442,12.07010742,82.53,82.506,0.5]
[1771596605125,12.11539881,82.54,82.501,12.12096167]
[1771596605126,12.07010742,82.52,82.501,12.12096167]
[1771596606539,12.07010742,82.52,82.493,0.5]
[1771596607422,12.07010742,82.52,82.494,12.12209372]
[1771596607929,12.1064337,82.52,82.495,0.5]
[1771596608520,12.1064337,82.52,82.496,12.62179984]
[1771596609033,12.1064337,82.52,82.496,12.12179984]
[1771596609228,12.1064337,82.51,82.483,12.62371034]
[1771596609430,12.11416388,82.548,82.484,0.5]
[1771596609636,12.1064337,82.53,82.487,0.42648471]
[1771596609828,12.1064337,82.53,82.49,0.5]
[1771596611324,12.1064337,82.53,82.478,0.14216157]
[1771596611325,12.1064337,82.53,82.492,0.5]
[1771596612518,30.28850711,82.54,82.492,0.5]
[1771596612735,12.1064337,82.52,82.492,0.5]
[1771596613630,30.2854097,82.595,82.494,0.5]
[1771596613835,12.1064337,82.53,82.494,0.5]
[1771596614522,12.1064337,82.52,82.493,42.42784235]
[1771596614719,12.1064337,82.51,82.488,12.1228345]
[1771596616025,12.1064337,82.51,82.489,0.5]
[1771596616341,12.1064337,82.53,82.489,0.5]
[1771596619249,12.11695282,82.529,82.491,0.5]
[1771596621032,30.28834504,82.54,82.491,0.5]
[1771596621033,12.1064337,82.54,82.491,0.5]
[1771596621338,12.1064337,82.54,82.499,0.5]
[1771596622133,12.1064337,82.55,82.499,0.5]
[1771596622833,12.1064337,82.54,82.499,0.5]
[1771596623625,12.1064337,82.55,82.501,0.5]
[1771596623836,12.1064337,82.56,82.509,0.5]
[1771596626958,24.2189462,82.56,82.511,0.5]
[1771596627854,12.1064337,82.55,82.511,0.5]
[1771596628040,12.1064337,82.54,82.51,42.41910071]
[1771596628241,12.1064337,82.53,82.51,12.11974306]
[1771596628948,12.1064337,82.53,82.506,12.12033064]
[1771596629651,12.1064337,82.54,82.507,0.5]
[1771596632562,12.1154848,82.539,82.509,0.5]
[1771596633354,12.1064337,82.53,82.508,12.12003684]
[1771596633563,12.1064337,82.53,82.504,12.12050135]
[1771596633761,12.1064337,82.52,82.504,12.12050135]
[1771596633942,12.1064337,82.53,82.504,12.12050135]
[1771596634548,24.22329491,82.53,82.504,12.12050135]
[1771596636738,12.1064337,82.54,82.505,0.5]
[1771596638752,12.1064337,82.54,82.507,0.5]
[1771596639267,12.1064337,82.55,82.507,0.5]
[1771596644454,12.1064337,82.55,82.509,0.5]
[1771596645348,12.1064337,82.54,82.509,0.5]
[1771596646084,12.1064337,82.52,82.5,12.12121212]
[1771596646371,24.22327462,82.53,82.499,30.30314787]
[1771596646550,24.22327462,82.53,82.5,0.5]
[1771596647156,12.1064337,82.53,82.5,0.5]
[1771596647566,0.28432314,82.548,82.5,0.5]
[1771596647567,12.1064337,82.54,82.5,0.5]
[1771596648957,12.1064337,82.54,82.502,0.5]
[1771596649976,4.51802843,82.54,82.502,0.5]
[1771596650347,4.51802843,82.55,82.502,0.5]
[1771596651152,4.51802843,82.55,82.504,0.5]
[1771596651371,4.51802843,82.54,82.504,0.5]
[1771596652273,4.51802843,82.53,82.505,42.4216714]
[1771596652574,4.51802843,82.52,82.505,42.4216714]
[1771596652780,4.51802843,82.53,82.505,42.4216714]
[1771596653483,4.51802843,82.53,82.505,42.9216714]
[1771596654470,4.51802843,82.53,82.506,0.5]
[1771596654976,4.51802843,82.52,82.506,0.5]
[1771596655854,12.11533138,82.541,82.506,0.5]
[1771596656482,4.51802843,82.52,82.507,12.12018374]
[1771596657470,4.51802843,82.52,82.497,0.5]
[1771596657976,4.51802843,82.51,82.489,12.12282849]
[1771596658167,0.14216157,82.54,82.491,0.5]
[1771596658373,30.28506092,82.549,82.491,0.5]
[1771596658374,4.51802843,82.53,82.491,0.5]
[1771596658767,4.51802843,82.53,82.493,0.5]
[1771596660880,4.51802843,82.54,82.501,0.5]
[1771596661073,4.51802843,82.55,82.501,0.5]
[1771596662774,4.51802843,82.54,82.501,0.5]
[1771596663080,0.14216157,82.555,82.503,0.5]
[1771596663279,0.14216157,82.555,82.502,42.42321398]
[1771596663280,4.51802843,82.52,82.502,12.12091828]
[1771596663482,4.51802843,82.51,82.495,12.1218539]
[1771596663670,4.51802843,82.51,82.484,12.12356335]
[1771596663873,4.51802843,82.51,82.485,0.5]
[1771596665476,4.51802843,82.5,82.469,0.5]
[1771596665687,12.118831,82.517,82.469,0.5]
[1771596665891,4.51802843,82.5,82.469,0.5]
[1771596666301,12.11665919,82.531,82.469,0.5]
[1771596666610,4.51802843,82.52,82.479,0.5]
[1771596666882,4.51802843,82.51,82.48,0.5]
[1771596667062,4.51802843,82.52,82.479,0.5]
[1771596667582,4.51802843,82.52,82.481,0.5]
[1771596668077,4.51802843,82.51,82.481,0.5]
[1771596670093,4.52054889,82.51,82.483,0.5]
[1771596670973,4.52054889,82.5,82.483,0.5]
[1771596671992,16.63889577,82.52,82.484,42.43247174]
[1771596672167,12.11665919,82.531,82.485,0.5]
[1771596672372,4.52054889,82.51,82.485,0.5]
[1771596674487,4.52054889,82.53,82.489,0.5]
[1771596675488,42.39443784,82.558,82.489,0.5]
[1771596675785,48.42007186,82.611,82.509,0.5]
[1771596675786,4.52054889,82.56,82.509,0.5]
[1771596676289,4.52054889,82.53,82.509,0.5]
[1771596676484,4.52054889,82.53,82.51,12.11974306]
[1771596677485,4.52054889,82.53,82.503,12.62077136]
[1771596677688,4.52054889,82.53,82.504,0.5]
[1771596679879,4.52054889,82.53,82.505,12.12047754]
[1771596680396,4.52054889,82.52,82.501,12.121014]
[1771596680979,4.52054889,82.51,82.493,12.12224067]
[1771596682773,4.52054889,82.51,82.488,0.5]
[1771596682978,4.52054889,82.51,82.434,48.52343058]
[1771596682979,4.52054889,82.51,82.493,0.5]
[1771596683187,0.42648471,82.55,82.493,0.5]
[1771596683392,4.52054889,82.52,82.493,0.5]
[1771596684490,4.52054889,82.52,82.495,0.5]
[1771596685694,4.52054889,82.53,82.495,0.5]
[1771596685896,12.11401712,82.549,82.494,12.12209372]
[1771596685897,4.52054889,82.52,82.494,12.12209372]
[1771596686514,4.52054889,82.51,82.489,42.42989973]
[1771596686704,4.52054889,82.51,82.489,42.92989973]
[1771596687902,4.52054889,82.51,82.489,42.42989973]
[1771596688106,12.25896757,82.53,82.49,0.5]
[1771596688305,4.52054889,82.51,82.49,0.5]
[1771596688986,4.52054889,82.51,82.491,12.12253457]
[1771596690002,12.10955643,82.51,82.491,12.12253457]
[1771596690204,12.10955643,82.51,82.492,0.5]
[1771596692111,12.10955643,82.51,82.486,0.5]
[1771596692406,12.11850672,82.519,82.486,0.5]
[1771596694102,12.11792552,82.523,82.488,0.5]
[1771596694405,12.10955643,82.53,82.488,0.5]
[1771596696391,12.10955643,82.53,82.49,0.5]
[1771596696392,12.11695282,82.529,82.49,0.5]
[1771596697411,12.10955643,82.53,82.49,0.5]
[1771596698705,24.22638611,82.53,82.492,0.5]
[1771596699914,24.22638611,82.53,82.494,0.5]
[1771596702204,24.22638611,82.53,82.495,12.12194678]
[1771596702401,24.22638611,82.53,82.496,0.5]
[1771596702704,12.11682968,82.53,82.496,0.5]
[1771596702910,12.25764637,82.539,82.496,0.5]
[1771596704503,12.10955643,82.53,82.498,0.5]
[1771596704707,12.11504446,82.542,82.498,0.5]
[1771596705109,12.11397167,82.55,82.5,0.5]
[1771596705494,24.2235281,82.55,82.5,0.5]
[1771596706096,24.2235281,82.55,82.501,42.42372818]
[1771596706300,24.2235281,82.55,82.502,0.5]
[1771596707686,24.2235281,82.55,82.504,0.5]
[1771596708699,24.2235281,82.55,82.506,0.5]
[1771596709910,16.63125516,82.55,82.506,0.5]
[1771596710619,4.51728349,82.53,82.505,42.4216714]
[1771596710812,4.51728349,82.53,82.505,30.30119386]
[1771596711012,12.11695282,82.529,82.501,12.12106519]
[1771596711698,12.11695282,82.529,82.501,12.62106519]
[1771596711898,12.11695282,82.529,82.502,0.5]
[1771596712100,12.11695282,82.529,82.503,12.12077136]
[1771596712295,4.51728349,82.53,82.503,12.62077136]
[1771596712516,16.63268807,82.54,82.504,0.5]
[1771596712720,0.14216157,82.549,82.504,0.5]
[1771596713099,42.38314361,82.58,82.504,0.5]
[1771596713299,4.51728349,82.55,82.504,0.5]
[1771596714501,16.63127651,82.55,82.505,42.4216714]
[1771596714701,16.63127651,82.55,82.506,0.5]
[1771596716124,4.51728349,82.55,82.506,0.5]
[1771596716318,16.6312266,82.55,82.506,0.5]
[1771596716617,16.6312266,82.55,82.508,0.5]
[1771596716820,4.51728349,82.54,82.508,0.5]
[1771596717910,4.51728349,82.53,82.508,0.5]
[1771596718611,12.1154848,82.539,82.509,12.11988995]
[1771596718812,12.1154848,82.539,82.499,30.30336011]
[1771596718813,4.51728349,82.53,82.502,0.5]
[1771596719600,4.51728349,82.53,82.505,12.12037933]
[1771596722020,4.51728349,82.53,82.503,0.5]
[1771596724905,16.63421831,82.53,82.495,0.5]
[1771596726618,4.51728349,82.52,82.495,0.5]
[1771596728326,4.51728349,82.53,82.497,0.5]
[1771596729032,42.39443784,82.558,82.493,12.62210381]
[1771596729033,4.51728349,82.51,82.493,12.62210381]
[1771596729227,4.51728349,82.52,82.493,12.62210381]
[1771596730033,4.52063927,82.52,82.494,0.5]
[1771596730335,12.11842121,82.519,82.49,0.5]
[1771596730713,4.52063927,82.52,82.49,0.5]
[1771596733934,12.11842121,82.519,82.491,12.12253457]
[1771596734235,12.11842121,82.519,82.492,0.5]
[1771596735037,12.11695282,82.529,82.492,0.5]
[1771596735333,0.14216157,82.528,82.492,0.5]
[1771596736232,0.14216157,82.528,82.493,12.12224067]
[1771596736434,0.14216157,82.528,82.494,0.5]
[1771596738433,0.14216157,82.528,82.496,0.5]
[1771596739835,12.11577837,82.537,82.496,0.5]
[1771596742925,12.11577837,82.537,82.498,0.5]
[1771596744232,10.3,82.556,82.497,42.42578517]
[1771596744233,4.52063927,82.55,82.5,0.5]
[1771596744839,12.11401712,82.549,82.502,0.5]
[1771596745233,4.52063927,82.54,82.502,0.5]
[1771596749246,12.1154848,82.539,82.503,12.12077136]
[1771596749450,12.1154848,82.539,82.504,0.5]
[1771596750532,4.52063927,82.54,82.504,0.5]
[1771596750732,12.1154848,82.539,82.504,0.5]
[1771596751757,16.63598216,82.54,82.506,0.5]
[1771596751968,4.52063927,82.55,82.506,0.5]
[1771596752262,4.52063927,82.57,82.51,0.5]
[1771596752635,0.14216157,82.569,82.51,0.5]
[1771596753761,4.52063927,82.56,82.512,0.5]
[1771596755758,139.22855273,82.598,82.496,48.48690405]
[1771596755759,4.52063927,82.57,82.52,0.5]
[1771596757361,4.52063927,82.56,82.52,0.5]
[1771596758558,12.11254981,82.559,82.522,0.5]
[1771596760256,12.11254981,82.559,82.518,0.5]
[1771596760257,4.52063927,82.54,82.518,0.5]
[1771596760462,4.52063927,82.54,82.519,12.11842121]
[1771596760866,0.14216157,82.559,82.52,0.5]
[1771596761041,4.52063927,82.56,82.52,0.5]
[1771596762348,4.52063927,82.55,82.52,0.5]
[1771596763153,12.11401712,82.549,82.521,12.1181275]
[1771596763351,12.11401712,82.549,82.522,0.5]
[1771596764366,4.52063927,82.54,82.514,0.5]
[1771596764659,4.52063927,82.52,82.502,0.5]
[1771596764844,4.52063927,82.52,82.497,12.62154156]
[1771596765247,4.52063927,82.52,82.497,12.12154156]
[1771596765452,4.52063927,82.52,82.498,0.5]
[1771596765861,12.11842121,82.519,82.491,12.62250689]
[1771596766248,12.11842121,82.519,82.492,0.5]
[1771596767451,4.52063927,82.51,82.48,0.5]
[1771596769356,12.11988995,82.509,82.48,0.5]
[1771596769865,4.52063927,82.53,82.482,0.5]
[1771596770047,4.52063927,82.52,82.482,0.5]
[1771596771571,4.52063927,82.5,82.473,0.5]
[1771596771957,4.52063927,82.51,82.473,0.5]
[1771596772353,42.41550225,82.517,82.473,0.5]
[1771596772561,4.52063927,82.51,82.473,0.5]
[1771596773573,4.52063927,82.52,82.475,0.5]
[1771596774170,12.11754013,82.525,82.475,0.5]
[1771596774753,4.52063927,82.52,82.475,0.5]
[1771596776366,12.11697908,82.529,82.479,0.5]
[1771596778067,12.11697908,82.529,82.48,42.43452957]
[1771596778272,12.11697908,82.529,82.481,0.5]
[1771596779772,4.52063927,82.52,82.483,0.5]
[1771596779974,0.14216157,82.545,82.471,0.28432314]
[1771596779975,4.52063927,82.51,82.481,12.1239484]
[1771596780275,4.52063927,82.5,82.477,0.5]
[1771596780573,4.52063927,82.53,82.478,0.5]
[1771596780767,42.39957358,82.548,82.487,0.28432314]